bitfinex/quotes_BTCUSD_20251104
["timestamp","ask_amount","ask_price","bid_price","bid_amount"]
[1762289486745,2.35026926,100700.0,100690.0,0.00619793]
[1762289486951,2.35026926,100700.0,100690.0,0.02619791]
[1762289487847,2.40033926,100700.0,100690.0,0.00619793]
[1762289488086,3.11529913,100700.0,100690.0,0.00619793]
[1762289488975,2.35026926,100700.0,100690.0,0.05013793]
[1762289489179,2.35026926,100700.0,100690.0,0.00619793]
[1762289489378,2.35026926,100700.0,100690.0,0.76889848]
[1762289489379,0.001,100700.0,100690.0,0.76889848]
[1762289489549,0.001,100700.0,100690.0,0.16340791]
[1762289490204,0.001,100700.0,100690.0,0.76889848]
[1762289490467,0.001,100700.0,100690.0,0.07013791]
[1762289490920,0.001,100700.0,100690.0,0.05013793]
[1762289491340,2.4382,100700.0,100690.0,0.00219793]
[1762289491549,2.48438,100700.0,100690.0,0.00219793]
[1762289491750,0.341,100700.0,100690.0,0.13558791]
[1762289491953,0.34,100710.0,100690.0,0.73507848]
[1762289492166,0.34,100710.0,100700.0,0.62549055]
[1762289492364,2.0,100740.0,100710.0,0.01999998]
[1762289492480,2.02768835,100740.0,100730.0,0.01999998]
[1762289492680,2.00922945,100740.0,100730.0,0.01999998]
[1762289492892,2.34922945,100740.0,100730.0,0.01999998]
[1762289493336,2.00922945,100740.0,100730.0,0.11604998]
[1762289493511,0.00922945,100740.0,100730.0,0.11604998]
[1762289493709,2.02908945,100740.0,100730.0,0.02014514]
[1762289493948,2.84349937,100740.0,100730.0,0.00014516]
[1762289494101,3.18349937,100740.0,100730.0,0.00014516]
[1762289494635,2.5780088,100740.0,100730.0,0.00014516]
[1762289494959,2.5790088,100740.0,100730.0,0.00114516]
[1762289495161,2.5780088,100740.0,100730.0,0.00014516]
[1762289495509,2.78253967,100740.0,100730.0,0.00114516]
[1762289495706,3.34881412,100740.0,100730.0,0.00014516]
[1762289495954,3.45383858,100740.0,100730.0,0.00014516]
[1762289496270,2.85857302,100740.0,100730.0,0.00114516]
[1762289496468,3.37282301,100740.0,100730.0,0.00014516]
[1762289497229,3.15029214,100740.0,100730.0,0.00014516]
[1762289497800,3.15529214,100740.0,100730.0,0.00114516]
[1762289498155,3.35382301,100740.0,100730.0,0.00144829]
[1762289498541,3.42665134,100740.0,100730.0,0.00144829]
[1762289498739,3.40382301,100740.0,100730.0,0.00144829]
[1762289499200,3.97609746,100740.0,100690.0,0.02039998]
[1762289499412,2.62546445,100700.0,100690.0,0.0004]
[1762289499615,2.15404834,100700.0,100690.0,0.02039998]
[1762289500096,2.15404834,100700.0,100690.0,0.02141092]
[1762289500225,3.26493252,100700.0,100690.0,0.00141094]
[1762289500429,3.06632279,100700.0,100690.0,0.02141092]
[1762289500632,3.06646693,100700.0,100690.0,0.02141092]
[1762289500834,3.08649775,100700.0,100690.0,0.02141092]
[1762289501052,3.08649775,100700.0,100690.0,0.00141094]
[1762289501263,3.28510748,100700.0,100690.0,0.00141094]
[1762289501657,3.3172969,100700.0,100690.0,0.00141094]
[1762289501860,3.35861868,100700.0,100690.0,0.00141094]
[1762289502071,3.1549912,100700.0,100690.0,0.00141094]
[1762289502331,3.17781953,100700.0,100690.0,0.00241094]
[1762289502507,2.60554508,100700.0,100690.0,0.00241094]
[1762289502843,3.08649775,100700.0,100690.0,0.00141094]
[1762289503582,2.49419248,100700.0,100690.0,0.00141094]
[1762289503969,2.40957248,100700.0,100690.0,0.00241094]
[1762289504208,2.01638248,100700.0,100690.0,0.06635092]
[1762289504411,0.00938248,100700.0,100690.0,0.20853092]
[1762289504613,0.01338248,100700.0,100690.0,0.20953092]
[1762289504818,0.00414414,100700.0,100690.0,0.20953092]
[1762289505018,0.00414414,100700.0,100690.0,0.78180537]
[1762289505196,0.00014414,100700.0,100690.0,0.78080537]
[1762289505398,0.00114414,100700.0,100690.0,0.11708092]
[1762289505599,0.00114414,100700.0,100690.0,0.04835094]
[1762289505911,2.34014414,100700.0,100690.0,0.12667092]
[1762289506108,2.34940666,100700.0,100690.0,0.21576092]
[1762289506515,2.34940666,100700.0,100690.0,0.12667092]
[1762289506713,2.58275363,100700.0,100690.0,0.00141094]
[1762289506878,2.44896363,100700.0,100690.0,0.00141094]
[1762289507254,2.35040666,100700.0,100690.0,0.00841094]
[1762289507457,2.50238376,100700.0,100690.0,0.02141092]
[1762289507668,2.50238376,100700.0,100690.0,0.00141094]
[1762289507851,2.70199349,100700.0,100690.0,0.00641094]
[1762289508057,2.70199349,100700.0,100690.0,0.02141092]
[1762289508058,2.50238376,100700.0,100690.0,0.02141092]
[1762289508266,2.60194073,100700.0,100690.0,0.02141092]
[1762289508402,2.60194073,100700.0,100690.0,0.00341094]
[1762289508403,2.60294073,100700.0,100690.0,0.00341094]
[1762289508600,3.37282491,100700.0,100690.0,0.00141094]
[1762289508801,3.17421518,100700.0,100690.0,0.00141094]
[1762289509002,3.17721518,100700.0,100690.0,0.00241094]
[1762289510067,3.07765821,100700.0,100690.0,0.00241094]
[1762289510275,3.07465821,100700.0,100690.0,0.00141094]
[1762289510476,3.07565821,100700.0,100690.0,0.00241094]
[1762289510774,2.50338376,100700.0,100690.0,0.00241094]
[1762289510981,3.07565821,100700.0,100690.0,0.00241094]
[1762289511183,3.17521518,100700.0,100690.0,0.00241094]
[1762289511385,2.0,100690.0,100680.0,0.01999998]
[1762289511590,2.02781962,100690.0,100680.0,0.01999998]
[1762289511939,2.16189962,100690.0,100680.0,0.01999998]
[1762289513860,2.16189962,100690.0,100650.0,0.7272694]
[1762289514031,2.0,100670.0,100650.0,0.7272694]
[1762289514232,0.00926252,100670.0,100650.0,0.7272694]
[1762289514596,0.02096116,100670.0,100660.0,0.05407]
[1762289514939,0.00926252,100670.0,100650.0,0.6323594]
[1762289515230,0.00926252,100670.0,100650.0,0.12259]
[1762289515435,0.00926252,100670.0,100660.0,0.01999998]
[1762289515836,0.00926252,100670.0,100660.0,0.06965998]
[1762289516758,0.01026252,100670.0,100660.0,0.07365998]
[1762289516964,0.04288252,100670.0,100660.0,0.004]
[1762289517302,0.47797047,100670.0,100660.0,0.004]
[1762289517502,0.47797047,100670.0,100660.0,0.0047586]
[1762289517503,3.1934665,100670.0,100660.0,0.0047586]
[1762289517710,3.16151855,100670.0,100660.0,0.02475858]
[1762289518037,2.55583915,100670.0,100660.0,0.02475858]
[1762289518654,3.16151855,100670.0,100660.0,0.02475858]
[1762289518875,3.16151855,100670.0,100660.0,0.0047586]
[1762289519909,3.19455548,100670.0,100660.0,0.0047586]
[1762289520217,3.28390385,100670.0,100660.0,0.0047586]
[1762289520420,3.50974443,100670.0,100660.0,0.0047586]
[1762289520694,3.53162124,100670.0,100660.0,0.0007586]
[1762289520993,3.54471303,100670.0,100660.0,0.0017586]
[1762289521192,0.58868865,100660.0,100640.0,0.0504]
[1762289521391,3.02553661,100650.0,100640.0,0.0504]
[1762289521541,3.13344913,100650.0,100640.0,0.0504]
[1762289521741,2.51008252,100650.0,100640.0,0.0504]
[1762289521985,2.34926252,100650.0,100640.0,0.07039998]
[1762289522355,2.34926252,100650.0,100640.0,0.0708838]
[1762289522558,0.00926252,100650.0,100640.0,0.0708838]
[1762289522778,0.00926252,100660.0,100640.0,0.1213838]
[1762289523004,0.00927956,100660.0,100650.0,0.57434661]
[1762289523242,0.09865,100690.0,100670.0,0.01999998]
[1762289523243,2.0,100680.0,100670.0,0.01999998]
[1762289523371,2.0,100670.0,100650.0,0.01999998]
[1762289523582,2.11593129,100670.0,100660.0,0.02199998]
[1762289523777,0.01728129,100670.0,100660.0,0.09672998]
[1762289524087,0.01728129,100670.0,100660.0,0.76453659]
[1762289524088,0.00928129,100670.0,100660.0,0.76453659]
[1762289524284,2.0,100710.0,100680.0,0.01999998]
[1762289524498,2.12037912,100710.0,100700.0,0.01999998]
[1762289524700,2.25088912,100710.0,100700.0,0.01999998]
[1762289524878,2.25088912,100710.0,100680.0,0.01999998]
[1762289524879,2.82425573,100710.0,100680.0,0.01999998]
[1762289525091,0.04842,100700.0,100690.0,0.01999998]
[1762289525314,2.39770153,100700.0,100690.0,0.01999998]
[1762289525516,2.39784567,100700.0,100690.0,0.01999998]
[1762289525721,2.39784567,100700.0,100690.0,0.11407998]
[1762289525722,2.00942567,100700.0,100690.0,0.11407998]
[1762289525936,2.34942567,100700.0,100690.0,0.11407998]
[1762289526175,2.52785567,100700.0,100690.0,0.01999998]
[1762289526333,2.0,100690.0,100680.0,0.001]
[1762289526542,2.68210814,100690.0,100680.0,0.001]
[1762289526740,2.68210814,100690.0,100670.0,0.01999998]
[1762289526741,2.34,100680.0,100670.0,0.01999998]
[1762289526965,2.34928153,100680.0,100670.0,0.01999998]
[1762289527506,0.00928153,100680.0,100670.0,0.73778659]
[1762289527664,0.001,100690.0,100670.0,0.73778659]
[1762289527871,0.00928153,100690.0,100680.0,0.01999998]
[1762289528212,2.34,100690.0,100680.0,0.16926998]
[1762289528373,2.34928153,100690.0,100680.0,0.01999998]
[1762289528726,2.5954085,100690.0,100680.0,0.01999998]
[1762289529075,2.0,100670.0,100660.0,0.14118998]
[1762289529280,2.34,100680.0,100670.0,0.01999998]
[1762289529526,0.34929055,100680.0,100670.0,0.11444998]
[1762289529756,0.00929055,100680.0,100670.0,0.83879202]
[1762289529955,0.001,100690.0,100670.0,0.84253536]
[1762289530172,0.00014414,100700.0,100680.0,0.73794668]
[1762289530173,0.00943324,100700.0,100680.0,0.73794668]
[1762289530392,0.00943324,100700.0,100690.0,0.83085545]
[1762289530393,0.00943207,100700.0,100690.0,0.83085545]
[1762289530603,0.00943207,100700.0,100690.0,0.20777998]
[1762289531025,0.02800925,100700.0,100690.0,0.05221998]
[1762289531228,0.00943207,100700.0,100690.0,0.03222]
[1762289531474,0.00943207,100700.0,100690.0,0.05221998]
[1762289531889,0.04542207,100700.0,100690.0,0.05621998]
[1762289532096,2.56741428,100700.0,100690.0,0.02399998]
[1762289532326,2.56741428,100700.0,100690.0,0.004]
[1762289532538,2.58928953,100700.0,100690.0,0.004]
[1762289532755,2.56741428,100700.0,100690.0,0.02399998]
[1762289533138,2.56741428,100700.0,100690.0,0.004]
[1762289533343,2.59024261,100700.0,100690.0,0.004]
[1762289533581,2.48763428,100700.0,100690.0,0.004]
[1762289533986,2.52887207,100700.0,100690.0,0.004]
[1762289534214,2.34,100690.0,100680.0,0.01999998]
[1762289534396,2.44557793,100690.0,100680.0,0.01999998]
[1762289534747,2.34928793,100690.0,100680.0,0.16428998]
[1762289534948,2.34928793,100690.0,100680.0,0.01999998]
[1762289535180,2.34928793,100690.0,100680.0,0.16428998]
[1762289535385,0.00928793,100690.0,100680.0,0.16428998]
[1762289535630,2.00928793,100690.0,100680.0,0.01999998]
[1762289535798,0.00928793,100690.0,100680.0,0.01999998]
[1762289536017,2.38882383,100700.0,100690.0,0.01999998]
[1762289536218,2.38682388,100700.0,100690.0,0.01999998]
[1762289536414,2.48231388,100700.0,100690.0,0.01999998]
[1762289536580,2.52821388,100700.0,100680.0,0.02099998]
[1762289536786,2.0,100690.0,100680.0,0.01999998]
[1762289537032,0.00928974,100690.0,100680.0,0.01999998]
[1762289537236,2.0,100690.0,100680.0,0.01999998]
[1762289537485,0.34,100680.0,100660.0,0.02650766]
[1762289537703,2.48225,100670.0,100660.0,0.02022764]
[1762289538522,2.38599,100670.0,100660.0,0.02022764]
[1762289539245,2.34,100670.0,100660.0,0.02022764]
[1762289539628,2.38599,100670.0,100660.0,0.02022764]
[1762289540025,2.341,100670.0,100660.0,0.02222764]
[1762289540233,2.4353,100670.0,100660.0,0.02222764]
[1762289540436,3.35740687,100670.0,100660.0,0.02222764]
[1762289540651,2.57530448,100670.0,100660.0,0.02222764]
[1762289540821,2.38599,100670.0,100660.0,0.00022766]
[1762289541155,2.52932,100670.0,100660.0,0.02155764]
[1762289541357,3.5110913,100670.0,100660.0,0.002]
[1762289541561,3.38525072,100670.0,100660.0,0.002]
[1762289541767,2.53032,100670.0,100660.0,0.002]
[1762289542087,2.62987697,100670.0,100660.0,0.002]
[1762289542312,2.53032,100670.0,100660.0,0.02155764]
[1762289542598,2.52932,100670.0,100650.0,0.01955764]
[1762289542806,2.0,100660.0,100650.0,0.01955764]
[1762289543611,2.0,100660.0,100650.0,0.16355764]
[1762289543840,2.0,100680.0,100670.0,0.01955764]
[1762289544038,2.0,100690.0,100670.0,0.01955764]
[1762289544303,2.0,100690.0,100680.0,0.01955764]
[1762289544500,2.0,100700.0,100690.0,0.01955764]
[1762289544656,2.0,100710.0,100700.0,0.01955764]
[1762289544862,2.09549,100710.0,100700.0,0.01955764]
[1762289545067,2.0,100710.0,100700.0,0.01955764]
[1762289545270,2.0,100710.0,100700.0,0.16436764]
[1762289545660,0.00014417,100710.0,100700.0,0.01955764]
[1762289545869,0.00014417,100710.0,100700.0,0.07011764]
[1762289546448,2.34114417,100710.0,100700.0,0.02355764]
[1762289546653,2.57567114,100710.0,100700.0,0.004]
[1762289546990,2.57567114,100710.0,100700.0,0.02355764]
[1762289547442,2.50437114,100710.0,100700.0,0.02355764]
[1762289547645,2.57567114,100710.0,100700.0,0.004]
[1762289547847,2.57567114,100710.0,100700.0,0.02355764]
[1762289547992,2.34114417,100710.0,100700.0,0.02355764]
[1762289548193,0.34114417,100710.0,100700.0,0.02355764]
[1762289548394,0.34014417,100710.0,100700.0,0.01955764]
[1762289548842,0.34414417,100710.0,100700.0,0.02055764]
[1762289549050,0.34014417,100710.0,100700.0,0.07437764]
[1762289549231,0.34942597,100710.0,100700.0,0.07437764]
[1762289549430,0.01042597,100710.0,100700.0,0.17018764]
[1762289549839,0.01042597,100710.0,100700.0,0.002]
[1762289550084,0.04661534,100710.0,100700.0,0.02155764]
[1762289550287,0.04561534,100710.0,100700.0,0.01955764]
[1762289550434,0.00942597,100710.0,100700.0,0.01955764]
[1762289550631,0.00942597,100710.0,100700.0,0.16355764]
[1762289550832,0.00942629,100710.0,100700.0,0.08219764]
[1762289551080,0.0094255,100710.0,100700.0,0.16355764]
[1762289551393,0.00014417,100710.0,100700.0,0.9517032]
[1762289551569,0.00114417,100710.0,100700.0,1.00537329]
[1762289551782,0.00114417,100710.0,100700.0,0.16755764]
[1762289552099,0.00114417,100710.0,100700.0,1.00537329]
[1762289552302,0.00014417,100710.0,100700.0,1.00137329]
[1762289552659,0.00114417,100710.0,100700.0,0.9577032]
[1762289552871,0.00114417,100710.0,100700.0,1.00137329]
[1762289553080,0.34,100740.0,100730.0,0.01955764]
[1762289553286,0.3608674,100740.0,100730.0,0.04583764]
[1762289553488,0.02785866,100740.0,100730.0,0.18977764]
[1762289553897,2.02785866,100740.0,100730.0,0.04583764]
[1762289554096,2.0,100730.0,100710.0,0.1231]
[1762289554311,2.36785866,100730.0,100720.0,0.01955764]
[1762289554509,2.50920866,100730.0,100720.0,0.01955764]
[1762289554761,2.41417866,100730.0,100720.0,0.01955764]
[1762289555303,2.53847866,100730.0,100720.0,0.01955764]
[1762289555544,2.56230699,100730.0,100720.0,0.02355764]
[1762289555722,2.56130699,100730.0,100720.0,0.01955764]
[1762289555932,0.36785866,100730.0,100720.0,0.19459764]
[1762289556091,0.01028622,100730.0,100720.0,0.19659764]
[1762289556529,0.00928622,100730.0,100720.0,0.19459764]
[1762289557198,0.00928622,100730.0,100720.0,0.24426773]
[1762289557399,0.00928622,100730.0,100720.0,0.19459764]
[1762289557735,0.01433007,100750.0,100740.0,0.01955764]
[1762289557736,2.01433007,100750.0,100740.0,0.01955764]
[1762289558087,2.38230605,100750.0,100740.0,0.01955764]
[1762289558639,2.18626118,100750.0,100740.0,0.01955764]
[1762289558840,2.36797598,100750.0,100740.0,0.01955764]
[1762289559056,2.36897598,100750.0,100740.0,0.02155764]
[1762289559456,2.02897598,100750.0,100740.0,0.02155764]
[1762289559674,2.3805153,100750.0,100740.0,0.02155764]
[1762289559883,2.36897598,100750.0,100740.0,0.02155764]
[1762289560079,2.36897598,100750.0,100740.0,0.06489764]
[1762289560282,0.36897598,100750.0,100740.0,0.16119764]
[1762289562693,0.36897598,100750.0,100740.0,0.99901329]
[1762289562694,0.35042197,100750.0,100740.0,0.99901329]
[1762289563102,0.35042197,100750.0,100740.0,0.21086773]
[1762289563232,0.01042197,100750.0,100740.0,1.09329206]
[1762289563431,0.01042197,100750.0,100740.0,1.04362197]
[1762289563770,0.01042197,100750.0,100740.0,1.09329206]
[1762289564040,0.00114497,100750.0,100740.0,1.04362197]
[1762289564235,2.04755,100790.0,100780.0,0.01955764]
[1762289564447,2.06810498,100790.0,100780.0,0.01955764]
[1762289564577,3.47774579,100790.0,100780.0,0.01955764]
[1762289564930,2.34,100780.0,100770.0,0.01955764]
[1762289565088,3.27849968,100780.0,100750.0,0.02264]
[1762289565296,2.34,100760.0,100750.0,0.02264]
[1762289565499,2.39680584,100760.0,100730.0,0.14947009]
[1762289565710,2.53469584,100760.0,100750.0,0.01955764]
[1762289566369,2.34,100750.0,100740.0,0.01955764]
[1762289566544,2.34,100750.0,100720.0,0.02628]
[1762289566545,2.44717584,100750.0,100720.0,0.02628]
[1762289566750,2.0,100730.0,100720.0,0.04583764]
[1762289566951,0.00925584,100730.0,100720.0,0.04583764]
[1762289567109,2.34925776,100740.0,100730.0,0.00955765]
[1762289567308,2.34925784,100740.0,100730.0,0.01955764]
[1762289567507,2.34925784,100740.0,100730.0,0.01970261]
[1762289568453,2.35025784,100740.0,100730.0,0.02070261]
[1762289569100,2.35026002,100740.0,100730.0,0.02070261]
[1762289569262,2.34926002,100740.0,100730.0,0.01970261]
[1762289569664,2.47121002,100740.0,100730.0,0.02070261]
[1762289571069,2.46921002,100740.0,100730.0,0.01970261]
[1762289571318,2.47021002,100740.0,100730.0,0.02170261]
[1762289571540,2.46921002,100740.0,100730.0,0.01970261]
[1762289571964,2.47121002,100740.0,100730.0,0.02070261]
[1762289572397,2.37346002,100740.0,100730.0,0.02070261]
[1762289572602,2.35126002,100740.0,100730.0,0.02070261]
[1762289572843,2.35126002,100740.0,100730.0,0.08273261]
[1762289573052,2.35126002,100740.0,100730.0,0.02070261]
[1762289573914,2.01126002,100740.0,100730.0,0.02070261]
[1762289574063,2.01126002,100740.0,100730.0,0.08273261]
[1762289574468,2.35126002,100740.0,100730.0,0.15791261]
[1762289574930,2.35126002,100740.0,100730.0,0.08273261]
[1762289575121,2.35126002,100740.0,100730.0,0.02070261]
[1762289577107,2.47121002,100740.0,100730.0,0.02070261]
[1762289577270,2.35126002,100740.0,100730.0,0.00114497]
[1762289577478,2.57076699,100740.0,100730.0,0.02070261]
[1762289577671,2.35126002,100740.0,100730.0,0.02070261]
[1762289577899,2.46921002,100740.0,100730.0,0.01970261]
[1762289578104,2.46921002,100740.0,100730.0,0.02170261]
[1762289578105,2.37246002,100740.0,100730.0,0.02170261]
[1762289578316,2.47021002,100740.0,100730.0,0.02170261]
[1762289579170,2.47023836,100740.0,100730.0,0.02170261]
[1762289579778,2.25063201,100740.0,100730.0,0.02170261]
[1762289579976,2.47023836,100740.0,100730.0,0.02170261]
[1762289580268,2.35028836,100740.0,100730.0,0.06589261]
[1762289580420,2.35028836,100740.0,100730.0,0.20344261]
[1762289580797,0.01028836,100740.0,100730.0,0.20344261]
[1762289581344,0.001,100740.0,100730.0,0.20344261]
[1762289581546,0.001,100740.0,100730.0,1.13449223]
[1762289581749,0.001,100740.0,100730.0,1.08482214]
[1762289581950,0.00022728,100760.0,100730.0,1.08482214]
[1762289581951,0.00022728,100760.0,100750.0,0.01955764]
[1762289582341,0.00022728,100760.0,100750.0,0.10094764]
[1762289582584,0.00022728,100760.0,100750.0,1.13140511]
[1762289582777,0.0587042,100790.0,100750.0,1.13140511]
[1762289582778,0.04599,100810.0,100750.0,1.13114726]
[1762289582940,2.00928559,100810.0,100800.0,0.01955764]
[1762289583140,2.12767559,100810.0,100800.0,0.01309814]
[1762289583342,2.02079901,100810.0,100800.0,0.01309814]
[1762289583551,0.00928559,100810.0,100800.0,0.15011814]
[1762289583754,2.00928559,100810.0,100800.0,0.01309814]
[1762289583941,2.13276104,100810.0,100800.0,0.01309814]
[1762289584138,2.0,100800.0,100790.0,0.01309814]
[1762289584349,2.44701559,100800.0,100790.0,0.01309814]
[1762289584556,2.66769138,100800.0,100790.0,0.01309814]
[1762289584892,2.5002116,100800.0,100790.0,0.01309814]
[1762289585103,2.56807566,100800.0,100790.0,0.01309814]
[1762289585307,3.55358911,100800.0,100790.0,0.01309814]
[1762289585527,2.76648835,100800.0,100790.0,0.01309814]
[1762289585663,3.55358911,100800.0,100790.0,0.01309814]
[1762289585863,2.76648835,100800.0,100790.0,0.01309814]
[1762289586067,2.76648835,100800.0,100780.0,0.01309814]
[1762289586068,2.34,100790.0,100780.0,0.01309814]
[1762289586292,2.51662714,100790.0,100780.0,0.01309814]
[1762289586495,2.49438629,100790.0,100780.0,0.01309814]
[1762289586736,3.53484259,100790.0,100750.0,0.1435]
[1762289586891,3.22332076,100780.0,100770.0,0.01309814]
[1762289587099,0.34,100750.0,100730.0,0.14399]
[1762289587306,0.34928559,100750.0,100730.0,0.06267189]
[1762289587497,2.34,100740.0,100730.0,0.06267494]
[1762289587701,2.34,100740.0,100730.0,0.01848494]
[1762289587702,2.38728,100740.0,100730.0,0.01848494]
[1762289587904,2.48528,100740.0,100730.0,0.03158308]
[1762289588131,2.49455327,100740.0,100730.0,0.03158308]
[1762289588340,3.50300645,100740.0,100730.0,0.00014497]
[1762289588614,3.52693511,100740.0,100730.0,0.00014497]
[1762289588830,3.52693511,100740.0,100710.0,0.01309814]
[1762289589036,3.52693511,100740.0,100710.0,0.0316004]
[1762289589037,3.13702927,100720.0,100710.0,0.0316004]
[1762289589236,3.23268403,100720.0,100710.0,0.01850226]
[1762289589461,3.27192076,100720.0,100710.0,0.0316004]
[1762289589665,2.49762795,100720.0,100710.0,0.0316004]
[1762289589871,3.19549375,100720.0,100710.0,0.01309814]
[1762289590081,2.40839299,100720.0,100710.0,0.01309814]
[1762289590286,2.36608299,100720.0,100710.0,0.01409814]
[1762289590475,2.36208299,100720.0,100710.0,0.01309814]
[1762289590844,0.01127504,100720.0,100710.0,0.15163814]
[1762289591211,0.01127034,100720.0,100710.0,0.17014279]
[1762289591410,0.002,100720.0,100710.0,0.17014279]
[1762289592184,0.09746,100750.0,100740.0,0.01309814]
[1762289592361,2.10687369,100750.0,100740.0,0.01309814]
[1762289592562,2.49744369,100750.0,100740.0,0.01309814]
[1762289593139,3.17394727,100750.0,100740.0,0.01309814]
[1762289593327,2.05998369,100750.0,100740.0,0.01309814]
[1762289593466,2.39998369,100750.0,100740.0,0.01309814]
[1762289593669,2.02588187,100750.0,100740.0,0.01409814]
[1762289593872,2.00941369,100750.0,100740.0,0.01309814]
[1762289594075,0.00941369,100750.0,100740.0,0.15215814]
[1762289594316,0.01141369,100750.0,100740.0,0.15315814]
[1762289594516,0.01141369,100750.0,100740.0,0.06116814]
[1762289594846,0.02426832,100750.0,100740.0,0.01409814]
[1762289595202,0.01141369,100750.0,100740.0,0.01409814]
[1762289595415,0.02419586,100750.0,100740.0,0.14837814]
[1762289595625,0.00941369,100750.0,100740.0,0.14737814]
[1762289595853,0.01041369,100750.0,100740.0,0.72832475]
[1762289596072,0.00941369,100750.0,100740.0,0.72432475]
[1762289596511,0.01041369,100750.0,100740.0,0.77599484]
[1762289596663,0.01041369,100750.0,100740.0,0.14937814]
[1762289596863,0.01041369,100750.0,100740.0,0.72632475]
[1762289597066,0.01041369,100750.0,100740.0,0.87027361]
[1762289597434,0.00114486,100750.0,100740.0,0.87027361]
[1762289597961,0.00114486,100750.0,100740.0,0.293327]
[1762289598222,0.00114486,100750.0,100740.0,0.14937814]
[1762289598428,0.00114486,100750.0,100740.0,0.07183814]
[1762289598568,0.00941163,100750.0,100740.0,0.01309814]
[1762289598778,0.01041163,100750.0,100740.0,0.01809814]
[1762289598973,0.00941163,100750.0,100740.0,0.01309814]
[1762289599173,2.00941163,100750.0,100740.0,0.01309814]
[1762289599415,3.16909521,100750.0,100740.0,0.01609814]
[1762289599617,3.1782122,100750.0,100740.0,0.01609814]
[1762289599940,3.16909521,100750.0,100740.0,0.01609814]
[1762289600090,2.35041163,100750.0,100740.0,0.01309814]
[1762289600292,2.34941163,100750.0,100740.0,0.01309814]
[1762289600541,0.35241163,100750.0,100740.0,0.01409814]
[1762289600727,0.35241163,100750.0,100740.0,0.15133814]
[1762289601470,0.35241163,100750.0,100740.0,0.01409814]
[1762289601643,2.34941163,100750.0,100740.0,0.01309814]
[1762289602127,2.34941163,100750.0,100740.0,0.01409814]
[1762289602128,2.35041163,100750.0,100740.0,0.01409814]
[1762289602342,2.34941163,100750.0,100740.0,0.01309814]
[1762289602798,2.35241163,100750.0,100740.0,0.01409814]
[1762289603018,2.34941163,100750.0,100740.0,0.01309814]
[1762289603252,2.35041163,100750.0,100740.0,0.14865814]
[1762289603513,0.35041163,100750.0,100740.0,0.14865814]
[1762289603711,0.01041163,100750.0,100740.0,0.72560475]
[1762289604176,0.01041163,100750.0,100740.0,0.77527484]
[1762289604419,0.00022726,100770.0,100740.0,0.77527484]
[1762289604637,0.00022726,100770.0,100760.0,0.05743814]
[1762289604862,0.00949903,100770.0,100760.0,0.05743814]
[1762289605104,0.00949903,100770.0,100760.0,0.77695484]
[1762289605623,0.01049903,100770.0,100760.0,0.77695484]
[1762289606062,0.00949903,100770.0,100760.0,0.20000823]
[1762289606272,0.00949903,100770.0,100760.0,0.77895484]
[1762289606464,0.01049903,100770.0,100760.0,0.20200823]
[1762289606682,0.01049903,100770.0,100760.0,0.77895484]
[1762289607030,2.0,100810.0,100800.0,0.01309814]
[1762289607232,2.0,100810.0,100800.0,0.64182661]
[1762289607233,0.00014497,100810.0,100800.0,0.64182661]
[1762289607656,0.00014497,100810.0,100800.0,0.06488]
[1762289607866,0.00100319,100810.0,100800.0,0.06488]
[1762289608069,0.00100319,100810.0,100800.0,0.64182661]
[1762289608720,0.00100319,100810.0,100800.0,0.6914967]
[1762289609347,0.00200319,100810.0,100800.0,0.6924967]
[1762289609608,0.00100319,100810.0,100800.0,0.6914967]
[1762289609812,0.00100319,100810.0,100800.0,0.6964967]
[1762289609948,0.00200319,100810.0,100800.0,0.6964967]
[1762289610335,0.0004,100820.0,100810.0,0.04967009]
[1762289610541,0.00088295,100820.0,100810.0,0.75382547]
[1762289610739,0.00088295,100820.0,100810.0,0.03293]
[1762289611142,0.00088295,100820.0,100810.0,0.12583]
[1762289611542,0.00088295,100820.0,100790.0,0.02628]
[1762289611543,2.38830295,100820.0,100790.0,0.02628]
[1762289611835,2.0,100810.0,100790.0,0.02628]
[1762289612030,0.34,100800.0,100790.0,0.02628]
[1762289612234,0.34,100800.0,100770.0,0.7247167]
[1762289612415,2.34,100790.0,100780.0,0.02628]
[1762289612708,0.34,100790.0,100780.0,0.02628]
[1762289613628,0.34,100790.0,100780.0,0.11649]
[1762289613770,0.34,100800.0,100780.0,0.7431067]
[1762289613971,0.34,100800.0,100790.0,0.09021]
[1762289614212,0.34088295,100820.0,100790.0,0.77082297]
[1762289614412,0.34088295,100820.0,100810.0,0.02628]
[1762289614969,0.04401295,100820.0,100800.0,0.00053244]
[1762289615167,0.00088295,100820.0,100810.0,0.02628]
[1762289615446,0.04401295,100820.0,100800.0,0.00053244]
[1762289615634,0.00088295,100820.0,100800.0,0.00053244]
[1762289615832,0.00388295,100820.0,100810.0,0.02728]
[1762289616026,0.00413526,100820.0,100810.0,0.02728]
[1762289616347,2.0,100800.0,100780.0,0.11649]
[1762289616581,0.00388295,100820.0,100780.0,0.11649]
[1762289616801,0.34,100810.0,100800.0,0.57694661]
[1762289617201,0.34,100810.0,100800.0,0.15007]
[1762289617349,0.34,100810.0,100800.0,0.87651661]
[1762289617569,0.34,100810.0,100800.0,0.29957]
[1762289617768,0.34,100810.0,100800.0,0.87751661]
[1762289617987,0.00488295,100820.0,100800.0,0.9271867]
[1762289618240,0.00088295,100820.0,100810.0,0.69348661]
[1762289618445,0.00088295,100820.0,100810.0,0.26604]
[1762289618647,0.00088295,100820.0,100810.0,0.69348661]
[1762289619286,0.00088295,100820.0,100810.0,0.7431567]
[1762289619493,0.0004,100830.0,100810.0,0.78776538]
[1762289619699,0.0004,100850.0,100820.0,0.7363266]
[1762289619905,0.00054483,100850.0,100840.0,0.6705567]
[1762289620016,0.00054483,100850.0,100840.0,0.8154467]
[1762289620457,0.00054483,100850.0,100840.0,0.18883]
[1762289620821,0.00054483,100850.0,100840.0,0.20718917]
[1762289621027,0.00054483,100850.0,100840.0,0.78413578]
[1762289621231,0.00154483,100850.0,100840.0,0.21018917]
[1762289622596,0.00154483,100850.0,100840.0,0.21013591]
[1762289622937,0.00255389,100850.0,100840.0,0.78708252]
[1762289623382,0.00255389,100850.0,100840.0,0.83675261]
[1762289623603,0.00255389,100850.0,100840.0,0.78708252]
[1762289623764,0.00255389,100850.0,100840.0,0.83675261]
[1762289624188,0.0004,100860.0,100850.0,0.04967009]
[1762289624386,0.0004,100860.0,100850.0,0.88588373]
[1762289624607,0.0004,100860.0,100850.0,0.88507138]
[1762289625367,0.0004,100860.0,100850.0,0.88907138]
[1762289625368,0.0014,100860.0,100850.0,0.88907138]
[1762289625572,0.0014,100860.0,100850.0,0.02230591]
[1762289625803,2.4816,100860.0,100850.0,0.02230591]
[1762289626009,3.05854661,100860.0,100850.0,0.004]